bitfinex/quotes_ETHUSD_20240927
["timestamp","ask_amount","ask_price","bid_price","bid_amount"]
[1727461135557,3.70063,2702.3,2701.9,3.70105]
[1727461136670,3.70043,2702.4,2701.9,3.70105]
[1727461136852,3.70043,2702.4,2702.0,3.70089]
[1727461137460,3.70043,2702.4,2702.0,3.70089]
[1727461139897,7.40092,2702.4,2702.0,3.70089]
[1727461140065,3.70066,2702.3,2701.8,3.81322]
[1727461140264,4.5577235,2702.4,2701.9,3.70109]
[1727461140492,3.70043,2702.4,2701.9,3.70109]
[1727461140884,3.70063,2702.3,2701.8,0.112]
[1727461141063,3.70063,2702.3,2701.8,3.81323]
[1727461141261,0.7516,2702.0,2701.6,3.70149]
[1727461141510,0.7516,2702.0,2701.6,3.70142]
[1727461141714,0.7516,2702.0,2701.7,3.70131]
[1727461143504,0.7516,2702.0,2701.8,0.04434746]
[1727461143907,0.7516,2702.0,2701.7,3.70131]
[1727461144069,0.7516,2702.0,2701.9,0.04430515]
[1727461144263,0.7516,2702.0,2701.8,0.04434746]
[1727461144474,0.7516,2702.0,2701.9,0.04430515]
[1727461144818,0.7516,2702.0,2701.7,3.70131]
[1727461145011,3.70085,2702.1,2701.9,0.04430515]
[1727461145220,3.70085,2702.1,2701.7,3.70131]
[1727461145423,3.70085,2702.1,2702.0,0.04426284]
[1727461145574,4.516161,2702.1,2701.7,3.70131]
[1727461145886,3.70085,2702.1,2702.0,0.04426284]
[1727461146088,3.70085,2702.1,2701.7,3.70131]
[1727461146289,3.70085,2702.1,2702.0,0.04426284]
[1727461146489,4.516161,2702.1,2701.7,3.70131]
[1727461146672,3.70085,2702.1,2702.0,0.04426284]
[1727461146873,3.70085,2702.1,2701.7,3.70131]
[1727461147093,3.70085,2702.1,2702.0,0.04426284]
[1727461147299,0.7517,2702.2,2701.5,3.70189383]
[1727461147521,3.0,2702.4,2702.0,0.04426284]
[1727461147674,0.38588366,2702.4,2701.9,3.81298]
[1727461148017,4.08640366,2702.4,2702.0,0.04432948]
[1727461148220,3.7007,2702.2,2702.0,0.04432948]
[1727461148402,0.8055,2702.1,2701.7,3.70126]
[1727461149089,0.8055,2702.1,2701.8,3.70117]
[1727461149284,0.8055,2702.1,2701.5,7.40345383]
[1727461149615,0.8055,2702.1,2701.7,3.7013]
[1727461149975,0.8055,2702.1,2701.7,7.4026]
[1727461150176,4.50639,2702.1,2701.7,3.7013]
[1727461150412,3.70097,2702.0,2701.5,3.81355]
[1727461150615,4.50639,2702.1,2701.5,3.70154]
[1727461150817,4.957029,2702.1,2701.5,3.70154]
[1727461151019,1.256139,2702.1,2701.5,3.70154]
[1727461151177,3.70118,2701.9,2701.5,3.70154]
[1727461151817,3.70125,2701.8,2701.4,3.70171]
[1727461152029,0.7719,2701.7,2701.4,3.70171]
[1727461152331,0.7719,2701.7,2701.5,3.70158]
[1727461153029,4.47289,2702.0,2701.6,3.70151]
[1727461154137,0.7719,2702.2,2701.9,3.70101]
[1727461154437,0.38588366,2702.4,2702.2,3.70056]
[1727461154635,0.7719,2702.6,2702.1,3.58989383]
[1727461154636,4.47204,2702.6,2702.1,7.29070383]
[1727461154795,3.70028,2702.5,2702.0,3.70096]
[1727461155427,1.589111,2702.6,2702.1,3.70079]
[1727461155595,0.7719,2702.6,2702.1,3.70079]
[1727461155798,0.7719,2702.6,2702.1,3.70074]
[1727461156219,3.70028,2702.5,2702.0,3.70092]
[1727461156910,0.7719,2702.6,2702.1,3.70081]
[1727461157118,0.7719,2702.6,2702.1,7.40162]
[1727461157298,0.7719,2702.6,2702.2,3.70066]
[1727461158402,0.7719,2702.6,2702.3,0.04428589]
[1727461158895,4.48576,2702.8,2702.4,0.04424359]
[1727461159097,7.48556,2703.0,2702.4,3.74458359]
[1727461159531,7.48556,2703.0,2702.6,3.58989383]
[1727461159844,8.99010342,2703.0,2702.7,0.04411671]
[1727461160206,8.99010342,2703.0,2702.4,7.29023383]
[1727461160207,8.99010342,2703.0,2702.5,3.70018]
[1727461160441,7.87159242,2703.0,2702.8,0.04407442]
[1727461160645,7.87159242,2703.0,2702.5,3.70018]
[1727461160801,7.87159242,2703.0,2702.9,0.04403214]
[1727461161006,7.87159242,2703.0,2702.5,3.70018]
[1727461161229,1.17193242,2703.0,2702.9,0.04403214]
[1727461161429,1.17193242,2703.0,2702.6,3.70012]
[1727461161641,1.17193242,2703.0,2702.9,0.04403214]
[1727461161845,1.17193242,2703.0,2702.6,7.40018]
[1727461162041,1.17193242,2703.0,2702.9,0.04403214]
[1727461162245,1.17193242,2703.0,2702.6,7.36394903]
[1727461162447,3.0,2703.2,2702.9,0.04403214]
[1727461162744,3.38580044,2703.2,2703.0,0.04398986]
[1727461163122,0.38580044,2703.2,2703.0,0.04398986]
[1727461163336,0.7921,2703.3,2703.0,0.04398986]
[1727461164720,4.49128,2703.3,2703.0,0.04398986]
[1727461165382,0.3858988,2703.4,2703.0,7.33339369]
[1727461165506,4.0849488,2703.4,2703.0,7.33339369]
[1727461165843,3.69905,2703.4,2703.0,7.33339369]
[1727461166049,3.69926,2703.3,2703.0,0.04398986]
[1727461166406,3.69926,2703.3,2702.8,7.39972]
[1727461166615,3.69926,2703.3,2703.1,0.04334798]
[1727461166841,4.6001961,2703.3,2702.7,0.112]
[1727461167059,4.6001961,2703.3,2703.2,0.04330571]
[1727461167060,3.69926,2703.3,2703.2,0.04330571]
[1727461167261,3.69943,2703.2,2702.7,3.81198]
[1727461167757,3.69945,2703.1,2702.7,0.112]
[1727461167945,4.49155,2703.1,2702.6,7.28994383]
[1727461168325,4.49155,2703.1,2702.7,3.69998]
[1727461170552,0.7921,2703.1,2702.7,3.69998]
[1727461171222,4.9777446,2703.1,2702.6,3.70012]
[1727461171629,1.2782346,2703.1,2702.7,3.69991]
[1727461171829,0.7921,2703.1,2702.7,3.69991]
[1727461172656,0.7921,2703.1,2702.6,3.70012]
[1727461172865,3.6997,2703.0,2702.4,7.35]
[1727461173183,3.70016,2702.6,2702.1,3.81281]
[1727461173326,3.70016,2702.6,2702.5,0.04309095]
[1727461173529,3.70016,2702.6,2702.1,7.51345]
[1727461173748,3.70016,2702.6,2702.2,0.04184913]
[1727461173960,4.50957,2702.7,2702.2,3.74246913]
[1727461174129,5.005437,2702.7,2702.2,3.74246913]
[1727461174947,3.70029,2702.5,2702.2,0.04184913]
[1727461175150,0.370029,2702.4,2702.0,3.70095]
[1727461175393,3.70029,2702.5,2702.0,3.70095]
[1727461175597,0.7949,2702.4,2702.1,0.04206904]
[1727461175787,0.449519,2702.3,2702.1,0.04206904]
[1727461176088,0.449519,2702.3,2702.0,3.70096]
[1727461176246,4.49531,2702.4,2702.2,0.04228761]
[1727461176452,4.49531,2702.4,2702.1,0.04232992]
[1727461176654,4.49531,2702.4,2702.3,0.04224531]
[1727461176905,4.49531,2702.4,2702.2,0.04228761]
[1727461177048,4.49531,2702.4,2702.3,0.04224531]
[1727461177383,4.49531,2702.4,2701.9,3.70109]
[1727461177586,4.944841,2702.4,2702.0,0.04237222]
[1727461178449,0.7949,2702.4,2702.0,3.74326222]
[1727461179884,0.7949,2702.4,2702.0,7.33315605]
[1727461180184,4.49491,2702.7,2702.1,0.112]
[1727461180397,5.614384,2702.7,2702.2,3.70066]
[1727461180548,5.614384,2702.7,2702.2,3.74304199]
[1727461180748,9.314454,2702.7,2702.2,3.74304199]
[1727461181556,5.614384,2702.7,2702.2,3.74304199]
[1727461181897,0.7949,2702.3,2702.2,0.04238199]
[1727461182096,4.49545,2702.3,2702.2,0.04238199]
[1727461182301,4.49545,2702.3,2701.8,7.40232]
[1727461182601,4.49545,2702.3,2701.9,3.70108]
[1727461182755,4.49545,2702.3,2701.9,3.74359447]
[1727461182756,0.7949,2702.3,2701.9,3.74359447]
[1727461182957,0.7949,2702.3,2702.0,3.70094]
[1727461183153,0.7949,2702.3,2702.1,0.04242985]
[1727461184084,0.7949,2702.3,2701.9,7.40216]
[1727461184284,0.7949,2702.3,2702.2,0.04238754]
[1727461184483,0.7949,2702.3,2701.9,7.40216]
[1727461184682,0.7949,2702.3,2702.2,0.04238754]
[1727461184894,0.7949,2702.3,2702.0,3.70095]
[1727461185200,0.7949,2702.3,2702.2,0.04122252]
[1727461185397,0.7949,2702.3,2702.1,0.04126483]
[1727461185719,0.7949,2702.3,2702.2,0.04122252]
[1727461186058,0.7949,2702.3,2702.0,3.70095]
[1727461186296,0.7949,2702.3,2702.2,0.04122252]
[1727461186498,0.7949,2702.3,2702.1,0.04126483]
[1727461186658,0.7949,2702.3,2702.2,0.04122252]
[1727461187089,0.7949,2702.3,2702.0,3.70095]
[1727461187401,0.7949,2702.3,2702.1,0.04140363]
[1727461189808,3.70068,2702.2,2702.1,0.04140363]
[1727461190102,4.520284,2702.2,2702.1,0.04140363]
[1727461190322,4.520284,2702.2,2701.7,3.7013]
[1727461190323,3.70068,2702.2,2701.7,3.7013]
[1727461190608,4.08800389,2702.2,2701.7,3.7013]
[1727461190913,3.70096,2702.0,2701.8,0.04163606]
[1727461191210,3.70084,2702.1,2701.6,3.70141]
[1727461191363,3.70084,2702.1,2701.9,0.0415993]
[1727461191562,3.70084,2702.1,2701.5,1.77228396]
[1727461191563,0.38732389,2702.2,2701.7,1.66028396]
[1727461191766,0.7949,2702.3,2702.1,1.66028396]
[1727461192002,0.7949,2702.3,2702.2,0.04153901]
[1727461192507,0.7949,2702.3,2701.9,5.47333396]
[1727461192694,0.7949,2702.3,2702.2,0.04153346]
[1727461193190,0.7949,2702.3,2701.9,9.17434396]
[1727461193398,0.7949,2702.3,2702.0,0.04162362]
[1727461197218,4.49546,2702.3,2702.0,0.04162362]
[1727461197517,0.7949,2702.3,2702.0,0.04162362]
[1727461198298,4.49547,2702.3,2702.0,0.04162362]
[1727461200379,4.45808,2702.5,2702.1,1.66028396]
[1727461200585,3.70015,2702.6,2702.2,3.74226898]
[1727461200819,3.69994,2702.8,2702.4,3.70041]
[1727461200984,3.69968,2703.0,2702.5,5.36049396]
[1727461201187,3.69979,2702.9,2702.6,0.04129207]
[1727461201527,4.45738,2703.0,2702.6,3.74142207]
[1727461201830,4.45738,2703.0,2702.6,0.04129207]
[1727461202139,8.15706,2703.0,2702.6,0.04129207]
[1727461203126,3.69973,2702.9,2702.6,0.04129207]
[1727461204027,3.69993,2702.8,2702.6,0.04129207]
[1727461204325,9.14118396,2702.7,2702.6,0.04129207]
[1727461204529,4.48149,2702.3,2701.9,1.66028396]
[1727461204834,4.48149,2702.3,2701.9,5.36137396]
[1727461205129,4.48149,2702.3,2701.9,1.66028396]
[1727461205895,3.7007,2702.2,2701.9,1.66028396]
[1727461206198,4.48146,2702.3,2701.9,1.66028396]
[1727461206395,3.70015,2702.6,2702.0,7.29629839]
[1727461206612,3.70027,2702.5,2702.1,0.112]
[1727461208272,3.70027,2702.5,2701.8,3.70118]
[1727461208273,3.70075,2702.2,2701.8,0.112]
[1727461208596,4.52596,2702.3,2701.8,3.81314]
[1727461208795,4.52596,2702.3,2701.8,4.92412384]
[1727461209404,0.8254,2702.3,2701.9,3.70109]
[1727461209821,0.8254,2702.3,2701.8,0.112]
[1727461210106,3.70109,2701.9,2701.8,0.112]
[1727461210350,3.70124,2701.8,2701.1,14.64751839]
[1727461210648,3.70124,2701.8,2701.3,7.29731839]
[1727461210842,3.70111,2701.9,2701.3,7.40924839]
[1727461211041,3.70111,2701.9,2701.4,3.70171]
[1727461211241,3.70111,2701.9,2701.5,3.70164]
[1727461211446,3.70111,2701.9,2701.5,7.29705839]
[1727461211830,3.70132,2701.8,2701.5,3.59541839]
[1727461212042,3.70144,2701.7,2701.3,0.112]
[1727461212226,3.70152,2701.6,2701.2,3.70198]
[1727461212555,0.7818,2701.8,2701.1,3.8141]
[1727461212847,3.70154,2701.6,2701.1,3.8141]
[1727461213019,3.70154,2701.6,2701.1,7.51623]
[1727461213432,3.70154,2701.6,2701.1,3.8141]
[1727461213642,3.70154,2701.6,2701.2,3.70204]
[1727461214325,3.70137,2701.7,2701.1,3.8141]
[1727461214523,3.70137,2701.7,2701.3,3.70189]
[1727461216956,4.08771938,2702.4,2702.0,3.70096]
[1727461217181,0.7628,2702.7,2702.1,0.370096]
[1727461217462,3.69945,2703.1,2702.6,3.70006]
[1727461217764,4.46216,2703.2,2702.7,3.69997]
[1727461217968,0.7628,2703.2,2702.8,3.59541839]
[1727461218112,3.69904,2703.5,2702.9,3.69959]
[1727461218312,3.69902,2703.5,2703.0,3.69957]
[1727461218562,3.69902,2703.5,2703.0,3.73671585]
[1727461218927,3.69911,2703.4,2703.0,0.03714585]
[1727461219251,3.69902,2703.5,2703.0,0.03714585]
[1727461219971,3.69934,2703.2,2703.0,0.03714585]
[1727461220170,3.69945,2703.1,2703.0,0.03714585]
[1727461220344,3.69945,2703.1,2702.7,3.7]
[1727461220546,3.69945,2703.1,2702.5,11.16224]
[1727461220756,3.69945,2703.1,2702.5,11.16214]
[1727461220930,3.69945,2703.1,2702.6,3.73660461]
[1727461221363,4.46193,2703.4,2702.7,3.69998]
[1727461221568,4.99356529,2703.4,2702.7,3.69998]
[1727461221743,4.99356529,2703.4,2702.8,0.03642004]
[1727461222579,3.69939,2703.2,2702.8,0.03642004]
[1727461222782,3.69946,2703.1,2702.8,0.03642004]
[1727461223068,3.69959,2703.0,2702.9,0.0364388]
[1727461223534,0.739885,2703.1,2702.5,3.81214]
[1727461223740,3.69958,2703.1,2702.5,3.81214]
[1727461223966,3.69958,2703.1,2702.6,0.03652681]
[1727461224873,3.69958,2703.1,2702.6,3.73663681]
[1727461227674,3.69958,2703.1,2702.7,3.69999]
[1727461228169,3.69958,2703.1,2702.8,0.03644223]
[1727461228369,3.69958,2703.1,2702.7,3.69999]
[1727461228675,3.69958,2703.1,2702.8,0.03644223]
[1727461229055,3.69958,2703.1,2702.7,3.69999]
[1727461229252,3.69958,2703.1,2702.9,0.03639995]
[1727461229557,3.69958,2703.1,2702.8,0.03644223]
[1727461229760,3.69933,2703.2,2703.0,0.03635767]
[1727461230072,3.69933,2703.2,2703.1,0.03633204]
[1727461230479,3.69933,2703.2,2702.7,7.29540839]
[1727461230953,7.39873,2703.2,2702.8,0.03645888]
[1727461231275,7.39873,2703.2,2702.7,7.29540839]
[1727461231484,7.39873,2703.2,2702.9,0.0364166]
[1727461231633,3.69933,2703.2,2702.8,0.03645888]
[1727461231833,4.46194,2703.4,2703.0,0.03637432]
[1727461231834,4.46192,2703.4,2703.0,0.03637432]
[1727461232039,4.46192,2703.4,2702.9,3.73609763]
[1727461232277,4.46192,2703.4,2703.1,0.03639308]
[1727461232440,4.46192,2703.4,2703.0,0.03643535]
[1727461232782,4.46192,2703.4,2702.9,7.39927]
[1727461232783,0.7628,2703.4,2703.2,0.0363508]
[1727461232983,0.752,2703.7,2703.1,3.73583308]
[1727461233183,4.4507,2703.7,2703.3,0.03630853]
[1727461233470,4.4507,2703.7,2703.2,3.69922]
[1727461233471,0.752,2703.7,2703.4,0.03620522]
[1727461233675,3.69878,2703.6,2703.4,0.03620522]
[1727461233884,0.752,2703.7,2703.2,3.69922]
[1727461233885,4.45065,2703.7,2703.2,3.69922]
[1727461234178,3.69864,2703.7,2703.3,3.96534039]
[1727461234373,3.69864,2703.7,2703.3,3.59541839]
[1727461234602,3.69851,2703.8,2703.4,0.03620522]
[1727461234815,4.4503,2704.0,2703.5,3.6989]
[1727461234968,3.69842,2703.9,2703.6,0.0361207]
[1727461235278,4.08544911,2703.9,2703.4,3.81094]
[1727461235479,4.08544911,2703.9,2703.7,0.03589535]
[1727461235680,4.9903945,2703.9,2703.4,3.81094]
[1727461235886,4.08544911,2703.9,2703.8,0.03585309]
[1727461236089,3.69864,2703.7,2703.2,3.81123]
[1727461236294,3.69864,2703.7,2703.3,3.69916]
[1727461236675,4.08544911,2703.9,2703.3,3.69907]
[1727461236676,0.38702911,2703.9,2703.3,3.69907]
[1727461236879,7.78383911,2703.9,2703.4,3.69897]
[1727461237079,3.69851,2703.8,2703.4,3.69897]
[1727461238112,4.08538911,2703.9,2703.4,7.39792]
[1727461238402,0.38702911,2703.9,2703.5,3.69882]
[1727461239074,4.45022,2704.0,2703.5,3.69882]
[1727461239993,4.45022,2704.0,2703.6,3.69877]
[1727461240600,4.45022,2704.0,2703.5,4.87331144]
[1727461240817,3.69837,2703.9,2703.5,4.87331144]
[1727461241114,3.69837,2703.9,2703.5,3.69889]
[1727461241623,3.69836,2703.9,2703.5,3.69889]
[1727461242329,4.45023,2704.0,2703.6,3.69876]
[1727461242692,3.69809,2704.1,2703.7,3.69857]
[1727461243005,0.7745,2704.4,2704.0,3.59541839]
[1727461243208,3.69762,2704.5,2704.1,4.16962184]
[1727461243519,3.69762,2704.5,2704.1,0.112]
[1727461243725,7.39528,2704.5,2704.1,0.112]
[1727461244013,3.69769,2704.4,2704.1,0.112]
[1727461244216,3.6979,2704.3,2703.8,7.40589839]
[1727461244392,3.69788,2704.3,2703.8,0.112]
[1727461244596,3.69788,2704.3,2703.9,3.69833]
[1727461245323,3.69763,2704.5,2703.9,3.69833]
[1727461245499,3.69768,2704.4,2703.9,3.69833]
[1727461246023,3.69768,2704.4,2703.9,7.39661]
[1727461246525,3.69768,2704.4,2703.9,7.47056974]
[1727461247017,3.69768,2704.4,2704.0,3.6982]
[1727461247422,3.69768,2704.4,2704.1,0.112]
[1727461248524,3.69768,2704.4,2704.2,0.03743655]
[1727461249530,0.7745,2704.7,2704.2,0.03743655]
[1727461249742,3.69755,2704.5,2704.2,0.03743655]
[1727461251808,0.7745,2704.7,2704.2,0.03743655]
[1727461252099,4.53001,2704.3,2704.2,0.03743655]
[1727461252301,5.352781,2704.3,2704.2,0.03743655]
[1727461252600,3.69795,2704.2,2703.8,3.69843]
[1727461253942,3.69798,2704.2,2703.6,0.112]
[1727461254098,0.8322,2704.5,2703.8,3.69839]
[1727461254295,3.69777,2704.4,2703.8,3.69839]
[1727461254602,3.69789,2704.3,2703.8,3.69839]
[1727461255007,3.69814,2704.1,2703.6,3.69868]
[1727461255206,3.69842,2703.9,2703.5,7.35]
[1727461255393,3.69842,2703.9,2703.5,3.6989]
[1727461256229,3.69842,2703.9,2703.4,3.81097]
[1727461256468,3.69869,2703.7,2703.2,3.69921]
[1727461256730,0.453062,2703.9,2703.2,3.69921]
[1727461256731,3.69882,2703.6,2703.2,3.69921]
[1727461257141,4.5311,2703.5,2703.1,3.81144]
[1727461257641,0.8322,2703.5,2703.2,3.69931]
[1727461257809,0.8322,2703.5,2703.1,3.81144]
[1727461258015,0.8322,2703.5,2703.1,3.89221619]
[1727461258199,0.8322,2703.5,2703.2,3.6993]
[1727461258743,0.8322,2703.5,2703.1,3.81137]
[1727461259040,4.53114,2703.5,2703.1,0.06923673]
[1727461260717,5.354128,2703.5,2703.1,0.06923673]
[1727461260917,0.8322,2703.5,2703.1,0.06923673]
[1727461261119,4.53111,2703.5,2703.0,3.69951]
[1727461261450,4.53111,2703.5,2703.1,0.06923673]
[1727461261735,4.53111,2703.5,2703.1,3.76866673]
[1727461262943,3.69891,2703.5,2703.1,3.76866673]
[1727461263107,1.1960675,2703.7,2703.3,3.69906]
[1727461263310,4.5079,2703.7,2703.2,7.40672839]
[1727461263529,4.5079,2703.7,2703.2,3.81131]
[1727461263913,4.5079,2703.7,2703.3,3.69915]
[1727461264750,0.8092,2703.7,2703.3,3.69915]
[1727461264925,3.6985,2703.8,2703.3,3.69915]
[1727461265854,3.69875,2703.7,2703.2,0.112]
[1727461266317,8.60092227,2703.9,2703.3,3.69912]
[1727461266643,8.60092227,2703.9,2703.4,3.69902]
[1727461266843,4.90246227,2703.9,2703.4,3.69902]
[1727461267028,4.90246227,2703.9,2703.5,3.69889]
[1727461267234,4.90246227,2703.9,2703.6,0.06923544]
[1727461268820,1.20402227,2703.9,2703.6,0.06923544]
[1727461269131,0.38702227,2703.9,2703.7,0.112]
[1727461269444,4.45969,2704.1,2703.7,0.19266903]
[1727461269628,4.45969,2704.1,2703.7,0.08066903]
[1727461269832,8.15789,2704.1,2703.6,3.69877]
[1727461270029,8.54475871,2704.1,2703.7,0.08066903]
[1727461270228,3.69837,2703.9,2703.7,0.08066903]
[1727461270435,3.69824,2704.0,2703.5,3.69889]
[1727461270639,3.6986,2703.8,2703.6,0.08077468]
[1727461271010,3.6986,2703.8,2703.3,3.6991]
[1727461271211,3.6986,2703.8,2703.4,0.08098599]
[1727461271212,3.69872,2703.7,2703.4,0.08098599]
[1727461271441,4.47729,2703.6,2703.2,4.18196184]
[1727461271711,4.47729,2703.6,2703.3,0.08109166]
[1727461271712,3.69904,2703.4,2703.3,0.08109166]
[1727461271912,3.69904,2703.4,2703.3,0.06081875]
[1727461272152,3.69946,2703.1,2702.7,3.81193]
[1727461272467,3.69946,2703.1,2702.8,0.05478315]
[1727461272765,3.69946,2703.1,2702.7,3.81193]
[1727461273069,3.69933,2703.2,2702.8,0.06163104]
[1727461273566,3.69933,2703.2,2702.7,4.63711636]
[1727461273728,3.69933,2703.2,2702.9,0.06155176]
[1727461273927,3.69933,2703.2,2702.8,0.05478315]
[1727461274166,3.69933,2703.2,2703.0,0.05464221]
[1727461274363,3.69933,2703.2,2702.9,0.05471267]
[1727461274754,3.69933,2703.2,2702.7,0.18599233]
[1727461274951,7.39876,2703.2,2703.0,0.05464221]
[1727461275167,3.69933,2703.2,2702.7,3.88598233]
[1727461275673,3.69933,2703.2,2702.8,0.05478315]
[1727461275834,3.69919,2703.3,2702.8,3.82861498]
[1727461276031,3.69919,2703.3,2702.8,4.97007564]
[1727461276364,0.7808,2703.6,2703.2,3.6993]
[1727461276548,3.69904,2703.4,2703.0,3.81152]
[1727461276752,3.69904,2703.4,2703.3,0.05483766]
[1727461276933,3.69904,2703.4,2703.0,3.81152]
[1727461277132,3.69904,2703.4,2703.3,0.05483766]
[1727461277566,3.9822871,2704.1,2703.3,3.69909]
[1727461277772,3.69858,2703.8,2703.3,3.7488183]
[1727461278333,3.69878,2703.6,2703.3,0.0497283]
[1727461278931,3.69878,2703.6,2703.2,3.6993]
[1727461279128,3.69878,2703.6,2703.4,0.05518322]
[1727461279329,3.69892,2703.5,2703.3,0.05525366]
[1727461279656,3.69878,2703.6,2703.4,0.05518322]
[1727461279881,3.69878,2703.6,2703.1,3.69944]
[1727461280171,3.69878,2703.6,2703.5,0.05511278]
[1727461280332,3.69878,2703.6,2703.1,3.69939]
[1727461280670,3.69864,2703.7,2703.2,3.69931]
[1727461280966,3.69864,2703.7,2703.3,0.05525366]
[1727461281128,3.69882,2703.6,2703.3,0.05525366]
[1727461281332,3.69882,2703.6,2703.1,7.39876]
[1727461281576,3.69882,2703.6,2703.4,0.05518322]
[1727461281775,3.69891,2703.5,2703.1,3.69937]
[1727461282670,7.3974,2703.7,2703.1,3.69935]
[1727461282970,3.69864,2703.7,2703.1,3.69935]
[1727461283140,4.0854672,2703.6,2703.2,3.69931]
[1727461284230,4.0854672,2703.6,2703.0,0.112]
[1727461284433,4.0854672,2703.6,2703.0,1.21774184]
[1727461284631,4.0854672,2703.6,2703.1,3.69932]
[1727461285069,4.0854672,2703.6,2703.1,7.39869]
[1727461285260,7.7843572,2703.6,2703.1,3.69932]
[1727461285435,4.0854672,2703.6,2703.2,3.6993]
[1727461286991,0.3866972,2703.6,2703.2,3.69929]
[1727461287286,0.3866972,2703.6,2703.3,3.69917]
[1727461287579,0.3866972,2703.6,2703.5,7.29431839]
[1727461288073,0.3866972,2703.6,2703.5,7.40631839]
[1727461289076,0.3866972,2703.6,2703.4,3.69902]
[1727461289370,0.3866972,2703.6,2703.3,0.112]
[1727461289577,0.3866972,2703.6,2703.4,4.06978184]
[1727461289776,0.3866972,2703.6,2703.4,4.06970184]
[1727461290275,0.3866972,2703.6,2703.5,3.6989]
[1727461291272,0.3866972,2703.6,2703.4,4.06978184]
[1727461291583,0.3866972,2703.6,2703.5,0.78808718]
[1727461291979,0.3866972,2703.6,2703.4,4.06978184]
[1727461292150,0.3866972,2703.6,2703.4,3.69904]
[1727461292345,0.3866972,2703.6,2703.3,0.112]
[1727461292546,0.3866972,2703.6,2703.2,3.69923]
[1727461293151,0.3866972,2703.6,2703.3,3.69912]
[1727461293349,0.3866972,2703.6,2703.3,3.76915005]
[1727461294480,0.3866972,2703.6,2703.3,0.07003005]
[1727461294681,0.3866972,2703.6,2703.4,3.69902]
[1727461294878,0.3866972,2703.6,2703.5,0.06984891]
[1727461295282,0.3866972,2703.6,2703.5,3.76874891]
[1727461295715,0.3866972,2703.6,2703.5,7.55013762]
[1727461295876,8.15834,2704.2,2703.7,3.69862]
[1727461296083,0.38669549,2703.8,2703.7,3.69862]
[1727461296265,8.15834,2704.2,2703.7,3.69862]
[1727461296598,0.38669923,2703.9,2703.7,3.69862]
[1727461297463,0.38669923,2703.9,2703.7,7.39717]
[1727461297666,0.38669923,2703.9,2703.7,4.89190704]
[1727461299101,0.38669923,2703.9,2703.7,1.19335704]
[1727461299303,0.38669923,2703.9,2703.6,4.45376376]
[1727461299979,0.38669923,2703.9,2703.6,4.52773157]
[1727461303567,0.38669923,2703.9,2703.6,3.77271781]
[1727461304804,0.38669923,2703.9,2703.6,0.07396781]
[1727461305164,0.38669923,2703.9,2703.5,7.40620839]
[1727461305587,0.38669923,2703.9,2703.6,3.69875]
[1727461305877,0.38669923,2703.9,2703.6,3.77271783]
[1727461306194,0.38669923,2703.9,2703.8,7.40590839]
[1727461308499,3.69741,2704.6,2704.1,3.69802]
[1727461308704,3.69741,2704.6,2704.1,7.39601]
[1727461309093,3.69741,2704.6,2704.1,3.69799]
[1727461309268,4.48438,2704.7,2704.2,3.69794]
[1727461311377,4.48438,2704.7,2704.3,3.69781]
[1727461312072,0.7871,2704.7,2704.3,3.69774]
[1727461313609,0.7871,2704.7,2704.2,3.69784]
[1727461313813,0.7871,2704.7,2704.3,3.69771]
[1727461315793,4.48437,2704.7,2704.3,3.69771]
[1727461317281,0.7871,2704.7,2704.3,3.69771]
[1727461318191,4.48441,2704.7,2704.3,3.69771]
[1727461318382,0.7871,2704.7,2704.3,3.69771]
[1727461319479,4.48437,2704.7,2704.3,3.69771]
[1727461320104,0.7843,2704.6,2703.8,0.112]
[1727461320288,3.69729,2704.7,2703.8,3.69839]
[1727461320495,4.48222,2704.3,2703.8,3.69839]
[1727461320808,0.7843,2704.3,2703.8,4.803229]
[1727461321117,0.7843,2704.3,2703.9,3.59541839]
[1727461321320,0.7843,2704.3,2703.9,7.29375839]
[1727461321505,3.69804,2704.2,2703.7,7.35]
[1727461321682,0.7654,2704.0,2703.6,7.29409839]
[1727461321880,3.69836,2703.9,2703.3,3.69909]
[1727461322186,3.69836,2703.9,2703.4,3.699]
[1727461322386,0.7654,2703.8,2703.4,3.699]
[1727461322581,0.7654,2703.8,2703.5,3.69883]
[1727461322825,0.7654,2703.8,2703.5,7.39764]
[1727461323118,0.7654,2703.8,2703.6,3.69876]
[1727461323429,0.7654,2703.8,2703.5,3.69881]
[1727461323587,0.7654,2703.8,2703.4,3.69904]
[1727461323783,0.8065,2703.6,2703.1,3.69935]
[1727461324020,0.816198,2703.8,2702.8,3.69979]
[1727461324021,3.69904,2703.4,2702.8,3.69979]
[1727461324185,0.8065,2703.3,2703.1,0.08074851]
[1727461324384,0.8065,2703.3,2703.0,3.69958]
[1727461324821,0.8065,2703.3,2703.1,0.08074851]
[1727461325723,3.69867,2703.7,2703.1,0.08074851]
[1727461325897,4.48107,2703.6,2703.1,7.3755469]
[1727461326097,4.48107,2703.6,2703.1,3.6761669]
[1727461326295,3.69893,2703.5,2703.1,0.08074851]
[1727461327002,0.7897,2703.3,2703.1,0.08074851]
[1727461327198,0.7897,2703.3,2702.8,7.3995]
[1727461327699,0.7897,2703.3,2702.9,3.7691142]
[1727461328129,0.7897,2703.3,2703.0,3.69958]
[1727461328326,0.7897,2703.3,2703.1,0.06921301]
[1727461328845,4.46047,2703.6,2703.2,3.69931]
[1727461328998,0.7616,2703.6,2703.2,3.69931]
[1727461329600,0.7616,2703.6,2703.2,7.39852]
[1727461330031,0.7616,2703.6,2703.3,3.69911]
[1727461330811,1.20857816,2703.8,2703.4,7.29442839]
[1727461331026,0.38667816,2703.8,2703.6,3.69875]
[1727461331226,0.38667816,2703.8,2703.7,3.69863]
[1727461332906,0.38667816,2703.8,2703.7,3.77259652]
[1727461333317,0.38667816,2703.8,2703.7,3.77259532]
[1727461333602,0.38667816,2703.8,2703.7,3.69863]
[1727461334103,0.38667816,2703.8,2703.7,3.77259543]